bitfinex/quotes_ETHUSD_20251117
["timestamp","ask_amount","ask_price","bid_price","bid_amount"]
[1763404607876,1.84684132,3038.3,3036.7,0.6923]
[1763404607877,0.19453413,3038.2,3036.7,0.6923]
[1763404608195,0.65833413,3038.2,3036.7,0.6923]
[1763404608537,0.4638,3038.1,3036.8,0.4964]
[1763404609496,0.85210524,3038.0,3036.5,0.001]
[1763404609693,0.405504,3037.8,3036.5,0.001]
[1763404609942,0.1848,3036.7,3036.5,0.001]
[1763404610688,0.6486,3036.7,3036.5,0.001]
[1763404611128,0.1848,3036.7,3036.5,0.001]
[1763404611330,0.1848,3037.0,3036.5,0.001]
[1763404611733,0.1848,3037.3,3036.5,0.001]
[1763404612032,1.00295398,3037.7,3036.6,0.03393156]
[1763404612241,0.4638,3038.0,3036.6,0.4974]
[1763404613089,0.96185674,3037.9,3036.6,0.001]
[1763404613397,0.1848,3036.7,3036.6,0.001]
[1763404614093,0.4638,3037.1,3036.6,0.001]
[1763404614094,0.1848,3037.0,3036.6,0.001]
[1763404614808,0.1848,3037.3,3036.6,0.001]
[1763404615352,0.4638,3037.5,3036.6,0.001]
[1763404615624,0.4638,3037.8,3036.6,0.001]
[1763404615828,0.55635274,3037.7,3036.6,0.001]
[1763404616308,1.02015274,3037.7,3036.6,0.001]
[1763404616728,0.4638,3037.7,3036.6,0.001]
[1763404616922,0.4638,3037.7,3036.6,0.4974]
[1763404617116,0.4638,3037.7,3036.6,0.001]
[1763404617715,1.02015274,3038.0,3036.6,0.4974]
[1763404617899,1.02015274,3038.0,3036.6,0.001]
[1763404618228,0.4638,3037.9,3036.6,0.001]
[1763404618429,0.55635274,3037.8,3036.6,0.001]
[1763404618942,0.4638,3037.7,3036.6,0.001]
[1763404619096,0.96185674,3037.6,3036.6,0.001]
[1763404619616,0.4638,3037.5,3036.6,0.001]
[1763404620221,0.1848,3036.7,3036.6,0.001]
[1763404620816,0.37085923,3037.3,3036.6,0.001]
[1763404621000,1.02015274,3038.3,3036.7,0.4964]
[1763404621194,0.66636454,3038.2,3036.7,0.4964]
[1763404621435,0.66636454,3038.2,3036.6,0.001]
[1763404621436,0.55635274,3038.1,3036.6,0.001]
[1763404621636,0.405504,3038.0,3036.6,0.001]
[1763404621942,0.96185674,3038.0,3036.6,0.001]
[1763404622146,0.1848,3037.9,3036.6,0.001]
[1763404622440,0.1848,3037.9,3036.7,0.4964]
[1763404622647,0.55635274,3038.3,3036.7,0.4964]
[1763404622792,0.1848,3038.8,3036.7,0.4964]
[1763404622994,0.74115274,3038.8,3036.7,0.4964]
[1763404623209,1.60433867,3038.6,3036.7,0.4964]
[1763404623443,0.55635274,3038.5,3036.7,0.4964]
[1763404623612,1.02015274,3038.5,3036.7,0.4964]
[1763404623812,1.02015274,3038.5,3036.6,0.001]
[1763404623813,2.54184585,3038.3,3036.6,0.001]
[1763404624021,0.55635274,3038.2,3036.7,0.4964]
[1763404624215,0.405504,3038.2,3036.7,0.4964]
[1763404624416,0.405504,3038.2,3036.6,0.001]
[1763404624417,1.31249664,3038.0,3036.6,0.001]
[1763404624737,0.0992,3036.7,3036.6,0.001]
[1763404625402,0.6486,3037.1,3036.6,0.001]
[1763404625607,0.4792,3037.0,3036.6,0.001]
[1763404626759,0.405504,3036.9,3036.6,0.001]
[1763404626966,0.4792,3037.0,3036.6,0.001]
[1763404627959,7.89831639,3038.1,3036.7,0.4786]
[1763404627960,0.1939,3037.6,3036.7,0.4786]
[1763404628161,0.002,3038.5,3036.7,0.4786]
[1763404628162,0.37152966,3037.9,3036.7,0.4786]
[1763404628322,0.1939,3037.9,3036.7,0.4786]
[1763404628529,0.33923457,3038.7,3036.7,0.4786]
[1763404628530,0.86110867,3039.2,3037.8,0.1801]
[1763404628875,0.002,3040.4,3039.1,0.1801]
[1763404629078,0.002,3041.3,3039.3,0.405504]
[1763404629279,0.002,3041.3,3039.2,0.03290339]
[1763404629280,0.002,3041.3,3039.4,0.03290123]
[1763404629578,0.002,3041.3,3039.1,0.1801]
[1763404629727,0.4812,3041.0,3039.1,0.1801]
[1763404630163,0.4812,3040.7,3039.1,0.1801]
[1763404630531,0.405504,3040.6,3039.1,0.1801]
[1763404630960,0.405504,3040.4,3039.1,0.1801]
[1763404631361,0.4792,3040.5,3039.1,0.1801]
[1763404631676,0.002,3040.7,3039.2,0.03290339]
[1763404631892,0.002,3040.7,3039.1,0.1801]
[1763404632178,0.002,3040.7,3039.2,8.33672378]
[1763404632332,0.002,3040.7,3039.9,0.405504]
[1763404632532,0.002,3040.7,3040.4,7.89831639]
[1763404632732,0.002,3040.7,3040.5,0.405504]
[1763404632976,0.002,3040.7,3039.9,0.90699264]
[1763404633189,0.002,3040.7,3040.0,0.405504]
[1763404633348,0.002,3040.7,3040.5,1.31249664]
[1763404633548,0.002,3040.7,3040.6,1.3265853]
[1763404633847,0.002,3040.7,3039.3,0.85168238]
[1763404634036,0.002,3040.7,3038.5,2.35406762]
[1763404634037,0.002,3040.7,3038.2,8.80530903]
[1763404634257,0.002,3040.7,3038.8,7.89831639]
[1763404634674,0.002,3040.7,3039.3,0.405504]
[1763404634837,0.002,3040.7,3039.4,0.03290123]
[1763404635232,0.002,3040.7,3039.2,0.405504]
[1763404636244,0.002,3040.7,3037.5,2.87052971]
[1763404636245,0.1959,3040.7,3038.2,7.89831639]
[1763404636464,0.405504,3040.6,3037.5,7.89831639]
[1763404636647,0.1959,3040.7,3037.6,0.90699264]
[1763404636836,0.002,3040.7,3038.1,7.89831639]
[1763404637035,0.002,3040.7,3038.2,0.03291422]
[1763404637240,0.002,3040.7,3038.2,0.90699264]
[1763404637542,0.4792,3040.6,3038.1,0.90699264]
[1763404637956,0.4792,3040.6,3038.5,0.405504]
[1763404638169,0.4792,3040.6,3038.1,0.90699264]
[1763404638785,0.405504,3040.5,3037.4,7.89831639]
[1763404639085,0.405504,3040.5,3037.9,0.405504]
[1763404639270,0.002,3040.7,3038.0,7.89831639]
[1763404639271,0.4705,3040.4,3038.0,7.89831639]
[1763404639474,0.4705,3040.4,3038.1,0.78983164]
[1763404639674,0.405504,3040.3,3038.2,0.405504]
[1763404639881,0.405504,3040.3,3037.4,7.89831639]
[1763404640081,0.4705,3040.2,3037.5,0.90699264]
[1763404640387,0.4705,3040.2,3037.9,0.405504]
[1763404640688,0.405504,3040.1,3037.5,0.90699264]
[1763404641049,0.4705,3040.0,3037.5,0.90699264]
[1763404641458,0.4705,3040.0,3037.9,0.405504]
[1763404641662,0.4705,3040.0,3036.6,7.89931639]
[1763404641663,0.405504,3039.9,3036.6,7.89931639]
[1763404641862,0.405504,3039.9,3036.6,0.001]
[1763404642079,0.405504,3039.7,3036.7,7.89831639]
[1763404642261,0.405504,3039.7,3036.8,0.90699264]
[1763404642464,0.4705,3039.7,3037.5,0.405504]
[1763404642665,0.4705,3039.7,3037.7,0.405504]
[1763404642895,0.002,3040.7,3038.5,7.89831639]
[1763404643073,0.002,3040.7,3039.2,1.31249664]
[1763404643254,0.002,3040.7,3039.3,0.03290231]
[1763404643587,0.002,3040.7,3039.2,0.90699264]
[1763404644180,0.1906,3040.7,3038.6,0.78983164]
[1763404644489,0.4705,3040.6,3038.6,1.69682428]
[1763404644693,0.4705,3040.6,3038.7,0.95951407]
[1763404644893,0.4705,3040.6,3038.8,0.03290772]
[1763404645077,0.002,3040.7,3038.8,0.03290772]
[1763404645254,0.002,3040.7,3039.2,0.405504]
[1763404645451,0.002,3040.7,3039.4,0.405504]
[1763404645678,0.002,3040.7,3039.3,3.50590231]
[1763404645679,0.002,3040.4,3039.8,0.405504]
[1763404646691,0.002,3040.4,3040.3,12.68381303]
[1763404647281,0.002,3040.7,3040.4,0.405504]
[1763404647519,0.002,3040.7,3040.4,1.31249664]
[1763404648218,0.002,3041.1,3040.5,0.405504]
[1763404648416,0.002,3041.1,3040.9,12.68381303]
[1763404648624,0.002,3041.3,3040.9,13.95219433]
[1763404649115,0.002,3041.3,3041.2,4.78549664]
[1763404649374,0.002,3041.3,3041.2,0.405504]
[1763404649636,0.002,3041.3,3041.2,0.03288175]
[1763404649832,0.002,3041.3,3040.7,0.03288716]
[1763404649985,0.002,3041.3,3040.3,0.90699264]
[1763404650183,0.002,3041.3,3040.4,0.8805309]
[1763404650415,0.002,3041.3,3040.5,0.405504]
[1763404650920,0.002,3041.3,3040.4,0.8805309]
[1763404651084,0.002,3041.3,3040.5,0.405504]
[1763404651283,0.002,3041.3,3040.7,0.405504]
[1763404651924,0.002,3041.3,3040.5,0.405504]
[1763404652295,0.002,3041.3,3040.9,1.31249664]
[1763404652629,0.002,3041.3,3041.0,0.9210813]
[1763404653154,0.002,3041.3,3041.1,0.405504]
[1763404653489,0.002,3041.3,3040.4,0.8805309]
[1763404654746,0.002,3041.3,3039.6,7.89831639]
[1763404655247,0.002,3041.3,3039.7,0.90699264]
[1763404655409,0.4705,3041.2,3038.9,7.89831639]
[1763404655922,0.405504,3041.1,3038.3,7.89831639]
[1763404656096,0.405504,3041.1,3038.4,0.78983164]
[1763404656299,0.002,3041.3,3038.0,7.89831639]
[1763404656300,3.00807367,3040.9,3038.0,7.89831639]
[1763404656493,3.00807367,3040.9,3037.4,7.89831639]
[1763404656741,0.405504,3040.7,3037.5,0.405504]
[1763404656951,1.31249664,3040.7,3037.4,7.89831639]
[1763404657175,1.31249664,3040.1,3036.6,0.001]
[1763404657325,1.31249664,3039.5,3036.6,0.001]
[1763404657528,0.405504,3039.3,3036.6,0.001]
[1763404657726,1.31249664,3039.3,3036.6,0.001]
[1763404657929,0.405504,3039.1,3036.6,0.001]
[1763404658151,0.1957,3036.7,3036.6,0.001]
[1763404658514,0.6955,3036.7,3036.6,0.001]
[1763404659365,0.6955,3036.7,3036.3,0.001]
[1763404659366,0.1957,3036.7,3036.3,0.001]
[1763404659565,0.1957,3036.7,3034.2,0.0014]
[1763404659566,0.4998,3036.6,3034.2,0.0014]
[1763404659749,0.4998,3036.6,3034.4,0.0054]
[1763404659914,0.4998,3036.6,3034.5,0.90699264]
[1763404660117,0.4998,3036.6,3034.7,0.405504]
[1763404660315,0.4998,3036.6,3034.6,0.8864709]
[1763404660563,0.4998,3036.6,3034.7,0.0054]
[1763404660942,0.4998,3036.6,3034.7,0.410904]
[1763404661145,0.1957,3037.0,3035.0,7.89831639]
[1763404661350,0.1957,3037.0,3035.2,0.405504]
[1763404661728,0.6955,3037.0,3035.2,0.405504]
[1763404661961,0.601204,3037.4,3035.3,0.0054]
[1763404662126,0.601204,3037.4,3035.1,0.83038204]
[1763404662327,0.405504,3037.2,3034.7,0.405504]
[1763404662556,0.405504,3037.2,3034.6,0.8864709]
[1763404662864,0.405504,3037.0,3034.7,0.0054]
[1763404663075,0.4998,3037.1,3034.7,0.0054]
[1763404663962,0.1957,3037.4,3035.1,1.31249664]
[1763404664176,0.4998,3037.7,3035.1,1.31249664]
[1763404664335,0.4998,3037.7,3035.3,0.405504]
[1763404664730,0.4998,3037.7,3035.4,0.0054]
[1763404665038,0.4998,3037.7,3035.5,0.0329435]
[1763404665238,0.4998,3037.7,3035.4,0.0054]
[1763404665443,0.405504,3037.6,3034.9,0.0054]
[1763404665839,0.405504,3037.4,3034.9,0.0054]
[1763404666240,0.4998,3037.3,3034.9,0.0054]
[1763404666857,0.6955,3037.8,3035.1,0.405504]
[1763404667057,0.6955,3037.8,3035.3,0.405504]
[1763404667233,0.6955,3037.8,3035.5,0.405504]
[1763404667568,0.1957,3037.8,3035.7,0.405504]
[1763404667764,0.6955,3037.8,3035.6,0.0054]
[1763404667956,0.1957,3037.8,3035.6,0.0054]
[1763404668328,0.4998,3037.7,3035.6,0.0054]
[1763404668865,0.405504,3037.6,3035.6,0.0054]
[1763404669243,0.4998,3037.5,3035.6,0.0054]
[1763404670166,0.4998,3037.5,3035.0,1.31249664]
[1763404670366,0.4998,3037.5,3035.2,0.405504]
[1763404670748,0.4998,3037.5,3035.2,0.0054]
[1763404670943,0.4998,3037.5,3035.2,0.410904]
[1763404671345,0.4998,3037.5,3035.4,0.405504]
[1763404671544,0.4998,3037.5,3034.6,0.0064]
[1763404671545,0.405504,3037.4,3034.6,0.0064]
[1763404671974,0.1957,3037.8,3034.6,0.0064]
[1763404671975,0.405504,3037.2,3034.6,0.0064]
[1763404672361,0.405504,3037.0,3034.6,0.3948904]
[1763404672563,0.405504,3037.0,3034.7,0.405504]
[1763404672756,0.4998,3036.9,3034.7,0.0054]
[1763404672955,0.4998,3036.9,3034.7,3.4784]
[1763404673152,0.4998,3036.9,3034.8,0.405504]
[1763404673467,0.4998,3036.9,3035.0,0.405504]
[1763404673637,0.4998,3036.9,3034.8,0.0054]
[1763404673843,0.4998,3036.9,3034.6,0.001]
[1763404674075,0.4998,3036.9,3034.7,0.0054]
[1763404674269,0.4998,3036.9,3034.8,0.405504]
[1763404674488,0.4998,3036.9,3034.7,3.4784]
[1763404674489,0.4998,3036.9,3035.0,0.405504]
[1763404674790,0.4998,3036.9,3034.7,0.0054]
[1763404676959,0.4998,3036.9,3034.6,0.001]
[1763404677253,0.405504,3036.8,3034.6,0.001]
[1763404677566,0.4998,3036.9,3034.6,0.001]
[1763404677888,0.1957,3037.8,3034.6,0.001]
[1763404677889,0.4998,3036.8,3034.6,0.001]
[1763404678049,0.405504,3036.7,3034.6,0.001]
[1763404678381,0.601204,3036.7,3034.6,0.001]
[1763404678581,0.1957,3034.7,3034.6,0.001]
[1763404678986,0.4998,3035.0,3034.6,0.001]
[1763404679141,0.1957,3035.4,3034.6,0.001]
[1763404680566,0.1957,3036.0,3034.6,0.03395327]
[1763404680771,0.1957,3036.0,3034.6,0.001]
[1763404680772,0.4998,3035.9,3034.6,0.001]
[1763404681021,0.1957,3036.0,3034.6,0.0064]
[1763404681377,0.6955,3036.0,3034.6,0.001]
[1763404681573,0.4998,3035.9,3034.6,0.001]
[1763404683173,0.1957,3036.7,3034.7,0.410904]
[1763404683174,0.4998,3036.4,3034.7,0.410904]
[1763404683378,0.4998,3036.9,3034.9,0.405504]
[1763404683814,0.4998,3036.9,3035.0,0.0054]
[1763404684615,0.1957,3037.0,3035.1,0.03294784]
[1763404684918,0.4998,3036.9,3034.6,0.001]
[1763404685130,0.405504,3036.8,3034.6,0.001]
[1763404685292,0.70540499,3036.8,3034.6,0.001]
[1763404685624,0.405504,3036.6,3034.6,0.001]
[1763404685823,0.405504,3036.4,3034.6,0.001]
[1763404685975,0.70540499,3036.4,3034.6,0.001]
[1763404686177,0.405504,3036.2,3034.6,0.001]
[1763404686407,0.70540499,3036.2,3034.6,0.001]
[1763404686607,0.4729,3036.1,3034.6,0.001]
[1763404686936,0.4729,3036.5,3034.7,0.410904]
[1763404687155,0.4729,3036.5,3034.8,0.405504]
[1763404687317,0.1957,3037.0,3035.1,0.405504]
[1763404687656,0.1971,3037.0,3035.2,0.405504]
[1763404687830,0.002,3037.2,3035.2,0.405504]
[1763404687831,0.002,3037.2,3035.7,3.473]
[1763404688001,0.002,3037.2,3034.9,0.3883904]
[1763404688002,0.002,3037.2,3035.8,0.405504]
[1763404688203,0.002,3037.2,3036.0,0.405504]
[1763404688456,0.002,3037.2,3036.1,0.3883904]
[1763404688748,0.002,3037.2,3035.1,0.405504]
[1763404689047,0.002,3037.2,3036.0,0.0054]
[1763404689703,0.002,3037.2,3035.6,0.405504]
[1763404689903,0.002,3037.2,3035.6,0.0054]
[1763404689904,0.4729,3037.1,3035.6,0.0054]
[1763404690236,0.4729,3037.1,3035.0,0.03294892]
[1763404690415,0.002,3037.2,3034.5,5.82806762]
[1763404690416,0.002,3037.2,3035.6,0.0054]
[1763404690972,0.002,3037.2,3035.8,0.405504]
[1763404691106,0.002,3037.2,3035.9,0.0054]
[1763404691731,0.002,3037.2,3035.1,3.473]
[1763404691732,0.4729,3037.1,3035.1,2.35406762]
[1763404691939,0.4729,3037.1,3035.2,0.23540676]
[1763404692139,1.39727679,3037.0,3034.6,0.001]
[1763404692352,0.99177279,3036.9,3034.6,0.001]
[1763404692661,0.30008643,3036.8,3034.6,0.001]
[1763404692866,0.4729,3036.8,3034.6,0.001]
[1763404693016,0.4729,3036.8,3034.7,0.0054]
[1763404693210,0.4729,3036.8,3034.9,0.405504]
[1763404693410,0.4729,3036.8,3034.7,0.0054]
[1763404693757,0.4729,3036.8,3034.6,0.001]
[1763404693758,0.4729,3036.8,3034.8,0.0054]
[1763404693916,0.002,3037.2,3034.8,0.0054]
[1763404693917,0.4749,3037.2,3034.9,0.405504]
[1763404694117,0.4749,3037.2,3034.8,0.0054]
[1763404694327,1.62021904,3037.1,3034.8,0.0054]
[1763404694542,1.62021904,3037.1,3034.9,0.405504]
[1763404694748,2.09311904,3037.1,3034.9,0.405504]
[1763404694931,2.09311904,3037.1,3035.0,0.0054]
[1763404695142,1.69721484,3036.9,3035.0,0.0054]
[1763404695469,1.69721484,3036.9,3034.7,0.405504]
[1763404695615,1.69721484,3036.9,3035.0,0.0054]
[1763404695616,0.68991148,3036.8,3035.0,0.0054]
[1763404696041,0.4729,3036.7,3035.0,0.0054]
[1763404697349,0.21701148,3036.8,3035.0,0.0054]
[1763404697646,0.21701148,3036.8,3034.6,0.001]
[1763404697647,0.405504,3036.5,3034.6,0.001]
[1763404697855,0.70551305,3036.5,3034.6,0.001]
[1763404698062,0.1815,3034.7,3034.6,0.001]
[1763404698271,0.1815,3034.7,3034.3,0.001]
[1763404698485,0.4655,3034.6,3032.7,0.17228409]
[1763404698694,0.405504,3034.5,3032.7,0.17228409]
[1763404698999,0.4655,3034.6,3032.7,0.17228409]
[1763404699152,0.4655,3034.5,3032.7,0.17228409]
[1763404699496,0.4655,3034.5,3032.8,0.0104]
[1763404699786,0.4655,3034.5,3032.7,0.17228409]
[1763404699984,0.4655,3034.5,3032.5,0.0104]
[1763404700363,0.1815,3034.7,3032.5,0.0104]
[1763404700571,0.647,3034.7,3034.0,0.001]
[1763404700773,0.1815,3034.1,3032.3,0.01609]
[1763404700949,0.1815,3034.1,3033.6,0.001]
[1763404701145,0.4655,3034.0,3033.6,0.001]
[1763404703151,0.647,3034.5,3033.6,0.001]
[1763404703687,0.4655,3034.4,3033.6,0.001]
[1763404703985,0.405504,3034.3,3033.6,0.001]
[1763404704367,0.4655,3034.2,3033.3,0.001]
[1763404704571,0.1815,3033.4,3033.3,0.001]
[1763404705004,0.647,3033.4,3033.3,0.001]
[1763404705303,0.86594776,3035.6,3033.4,0.405504]
[1763404705449,1.14460935,3035.7,3034.7,1.31249664]
[1763404705650,2.80121779,3036.9,3035.7,0.405504]
[1763404705651,0.002,3036.9,3035.7,0.405504]
[1763404705986,0.05,3040.2,3035.7,0.405504]
[1763404705987,0.1815,3040.7,3036.9,0.002]
[1763404706197,0.002,3041.1,3039.4,0.405504]
[1763404706405,0.002,3041.1,3039.9,1.31249664]
[1763404706554,0.002,3041.1,3041.0,0.405504]
[1763404707256,0.002,3041.1,3039.5,0.87845796]
[1763404707688,0.002,3041.1,3039.6,0.87845796]
[1763404707895,0.002,3041.1,3039.5,0.87845796]
[1763404708047,0.002,3041.1,3039.7,0.405504]
[1763404708575,0.002,3041.1,3039.6,0.405504]
[1763404708887,0.002,3041.1,3040.4,0.87845796]
[1763404709072,0.002,3041.1,3040.3,1.28396196]
[1763404709385,0.002,3041.1,3040.4,0.0328904]
[1763404709688,0.002,3041.1,3040.7,0.405504]
[1763404709878,0.002,3041.1,3040.6,0.87845796]
[1763404709879,0.002,3041.1,3040.6,0.405504]
[1763404710387,0.002,3041.1,3040.1,0.90699264]
[1763404710388,0.002,3041.1,3040.1,0.405504]
[1763404710599,0.002,3041.1,3040.6,0.405504]
[1763404710780,0.002,3041.8,3040.9,0.90699264]
[1763404711092,0.002,3041.8,3041.6,2.14198115]
[1763404711262,0.002,3041.8,3040.5,9.47806588]
[1763404711263,0.002,3041.8,3041.5,1.27081514]
[1763404711592,0.002,3041.8,3041.5,0.405504]
[1763404711890,0.002,3041.8,3040.8,0.405504]
[1763404712085,0.002,3041.8,3040.3,1.73647715]
[1763404712086,0.002,3041.8,3040.0,0.86531114]
[1763404712275,0.002,3041.8,3039.9,0.86531114]
[1763404712478,0.002,3041.8,3039.0,11.79331564]
[1763404712479,0.002,3041.8,3040.2,0.405504]
[1763404712668,0.002,3041.8,3040.4,1.27081514]
[1763404713254,0.002,3041.8,3040.3,1.27081514]
[1763404713804,0.002,3041.8,3039.8,0.86531114]
[1763404713988,0.002,3041.8,3039.0,11.79331564]
[1763404713989,0.002,3041.8,3039.7,0.86531114]
[1763404714167,0.002,3041.8,3039.9,0.405504]
[1763404714367,0.002,3041.8,3040.2,0.405504]
[1763404714563,0.002,3041.8,3040.1,0.405504]
[1763404714800,0.002,3041.8,3040.1,1.27081514]
[1763404715300,0.002,3041.8,3040.3,1.27081514]
[1763404715507,0.002,3041.8,3040.3,0.405504]
[1763404715709,0.002,3041.8,3040.2,1.94019924]
[1763404715870,0.002,3041.8,3040.3,0.405504]
[1763404716299,0.002,3041.8,3040.1,0.405504]
[1763404716892,0.002,3041.8,3039.9,0.405504]
[1763404717404,0.002,3041.8,3040.1,0.405504]
[1763404717722,0.002,3041.8,3039.8,0.90699264]
[1763404717724,0.002,3041.8,3040.8,1.31249664]
[1763404717886,0.002,3041.8,3041.0,0.405504]
[1763404718900,0.002,3041.8,3040.9,1.16558737]
[1763404719211,0.002,3041.8,3039.8,0.90699264]
[1763404719397,0.002,3041.8,3039.8,1.77230378]
[1763404719594,0.002,3041.8,3040.0,0.405504]
[1763404719810,0.002,3041.8,3040.2,1.27081514]
[1763404720035,0.002,3041.8,3040.2,0.405504]
[1763404720324,0.002,3041.8,3039.8,1.15374818]
[1763404720325,0.002,3041.8,3041.1,1.31249664]
[1763404720525,0.002,3041.8,3041.3,0.405504]
[1763404720701,0.002,3042.0,3041.3,0.405504]
[1763404722988,0.002,3042.0,3041.2,1.07905625]
[1763404723196,0.002,3042.0,3040.2,0.86531114]
[1763404723393,0.002,3042.0,3040.1,0.90699264]
[1763404723724,0.002,3042.0,3040.1,1.77230378]
[1763404723889,0.002,3042.0,3040.1,0.90699264]
[1763404724094,0.002,3042.0,3040.0,9.47806588]
[1763404724424,0.002,3042.0,3040.7,0.90699264]
[1763404724611,0.002,3042.0,3041.1,3.878504]
[1763404724816,0.002,3042.0,3041.6,0.405504]
[1763404724997,0.002,3042.0,3041.6,1.31249664]
[1763404725326,0.4832,3041.9,3041.6,1.31249664]
[1763404725637,0.4832,3041.9,3041.8,0.405504]
[1763404725820,0.4832,3041.9,3041.5,7.86675778]
[1763404725821,0.4832,3041.9,3040.9,7.86675778]
[1763404726124,0.4832,3041.9,3041.0,1.72655233]
[1763404726328,0.4832,3041.9,3041.1,0.405504]
[1763404726527,0.4832,3041.9,3040.1,0.94780659]
[1763404726701,0.4832,3041.9,3039.5,7.86675778]
[1763404727422,0.4832,3041.9,3039.6,0.90699264]
[1763404727623,0.4832,3041.9,3039.6,3.473]
[1763404727942,0.4832,3041.9,3039.6,0.90699264]
[1763404728825,0.4832,3041.9,3039.5,7.86675778]
[1763404729145,0.4832,3041.9,3039.6,0.78667578]
[1763404729516,0.4832,3041.9,3039.7,0.405504]
[1763404729851,0.4832,3041.9,3039.6,1.69366842]
[1763404730228,0.405504,3041.8,3039.6,0.78667578]
[1763404730562,0.4832,3041.7,3039.0,0.90699264]
[1763404730740,0.405504,3041.6,3038.9,7.86675778]
[1763404730918,0.405504,3041.6,3038.3,7.86675778]
[1763404731110,0.405504,3041.4,3038.3,7.86675778]
[1763404731515,0.405504,3041.2,3038.4,0.90699264]
[1763404731711,0.405504,3041.2,3037.2,1.6377426]
[1763404731712,0.405504,3041.2,3038.5,0.87737504]
[1763404731910,0.405504,3041.0,3037.9,7.86675778]
[1763404732359,0.405504,3040.8,3038.0,0.90699264]
[1763404732863,0.4832,3040.7,3037.9,7.86675778]
[1763404733232,0.405504,3040.5,3038.0,0.86531114]
[1763404733417,0.405504,3040.5,3037.6,0.86531114]
[1763404733728,0.405504,3040.3,3037.5,0.86531114]
[1763404734063,0.405504,3040.1,3037.3,8.73206892]
[1763404734268,0.405504,3040.1,3037.5,0.86531114]
[1763404734429,0.405504,3039.9,3037.5,0.86531114]
[1763404734632,0.405504,3039.9,3037.5,0.405504]
[1763404734827,0.1839,3037.6,3037.2,0.86531114]
[1763404735147,0.1839,3037.6,3036.9,0.86531114]
[1763404735457,0.4832,3037.5,3036.9,0.86531114]
[1763404735771,0.1839,3037.6,3037.3,0.86531114]
[1763404735981,0.4832,3037.5,3037.3,0.20190593]
[1763404736185,0.4832,3037.5,3037.3,0.86531114]
[1763404736573,0.4832,3037.5,3037.2,0.86531114]
[1763404736772,0.4832,3037.5,3037.1,0.86531114]
[1763404737181,0.4832,3037.5,3036.9,0.86531114]
[1763404737373,0.4832,3037.5,3036.9,1.06721707]
[1763404737601,0.4832,3037.5,3037.0,0.405504]
[1763404738051,0.4832,3037.5,3037.0,1.27081514]
[1763404738248,0.4832,3037.5,3037.0,0.405504]
[1763404738663,0.4832,3037.5,3036.9,0.20190593]
[1763404738957,0.4832,3037.5,3036.9,0.405504]
[1763404739155,0.4832,3037.5,3036.8,0.405504]
[1763404739687,0.4832,3037.5,3036.8,1.27081514]
[1763404740254,0.4832,3037.5,3036.6,0.86531114]
[1763404740452,0.4832,3037.5,3036.1,0.86531114]
[1763404740764,0.4832,3037.5,3035.7,1.73647715]
[1763404740765,0.4832,3037.5,3035.7,0.86531114]
[1763404740965,0.4832,3037.5,3035.5,0.86531114]
[1763404741352,0.4832,3037.5,3035.6,0.17723038]
[1763404741555,0.4832,3037.5,3035.2,0.86531114]
[1763404741977,0.4832,3037.5,3035.4,0.86531114]
[1763404742166,0.4832,3037.5,3035.6,0.405504]
[1763404742363,0.4832,3037.5,3035.3,1.15374818]
[1763404742364,0.4832,3037.5,3035.3,0.86531114]
[1763404742576,0.4832,3037.5,3035.2,0.86531114]
[1763404742779,0.405504,3037.4,3035.0,0.86531114]
[1763404742990,0.405504,3037.4,3034.1,7.86675778]
[1763404742991,1.31249664,3037.4,3034.5,0.86531114]
[1763404743199,0.405504,3037.2,3034.4,0.86531114]
[1763404743519,0.405504,3037.2,3034.2,0.86531114]
[1763404743674,0.4832,3037.3,3034.2,0.86531114]
[1763404743675,0.405504,3037.0,3034.2,0.86531114]
[1763404743874,0.405504,3037.0,3034.1,0.86531114]
[1763404744101,0.4832,3036.9,3034.3,1.27081514]
[1763404744297,0.4832,3036.9,3034.5,0.405504]
[1763404744717,0.4832,3036.9,3034.4,0.405504]
[1763404745015,0.4832,3036.9,3034.5,1.08309192]
[1763404745307,0.4832,3036.9,3034.6,0.405504]
[1763404745820,0.4832,3036.9,3034.8,0.405504]
[1763404746022,0.4832,3036.9,3035.0,0.405504]
[1763404746190,0.4832,3036.9,3035.4,0.405504]
[1763404746380,0.4832,3036.9,3035.6,0.405504]
[1763404747573,0.1839,3037.6,3035.6,0.405504]
[1763404747777,0.1839,3037.6,3036.0,1.31249664]
[1763404748093,0.484,3037.5,3035.7,0.405504]
[1763404748316,0.484,3037.5,3035.7,1.27081514]
[1763404748510,0.484,3037.5,3035.9,0.405504]
[1763404748810,0.484,3037.5,3035.6,0.405504]
[1763404749974,0.484,3037.5,3035.2,0.86531114]
[1763404750180,0.484,3037.5,3035.3,0.86531114]
[1763404750516,0.484,3037.5,3035.1,0.405504]
[1763404750817,0.484,3037.5,3035.3,0.405504]
[1763404751382,0.484,3037.5,3035.3,1.27081514]
[1763404751595,0.484,3037.5,3035.3,0.405504]
[1763404752078,0.484,3037.5,3035.3,0.86531114]
[1763404752293,0.484,3037.5,3035.4,0.86531114]
[1763404752492,0.484,3037.5,3035.5,0.405504]
[1763404753223,0.484,3037.5,3035.7,0.405504]
[1763404753606,0.484,3037.5,3035.6,0.405504]
[1763404754200,0.484,3037.5,3035.7,0.86531114]